fUST/lending_fUST_20250602
["ID","MTS","AMOUNT","RATE_DAILY","PERIOD"]
[363736671,1748854241885,-430.0,0.00018094,2]
[363736674,1748854241895,-524.21,0.00018094,2]
[363736676,1748854241905,-702.45,0.00018094,2]
[363736678,1748854241914,-430.0,0.00018094,2]
[363736680,1748854241924,-430.0,0.00018094,2]
[363736682,1748854241933,-785.69,0.00018094,2]
[363736684,1748854241943,-430.0,0.00018094,2]
[363736686,1748854241953,-2725.24,0.00018094,2]
[363736688,1748854241962,-499.93,0.00018094,2]
[363736690,1748854241972,-430.0,0.00018094,2]
[363736692,1748854241981,-430.0,0.00018094,2]
[363736694,1748854241991,-877.42,0.00018094,2]
[363736696,1748854242000,-430.0,0.00018094,2]
[363736698,1748854242009,-9414.87,0.00018094,2]
[363736700,1748854242019,-430.0,0.00018094,2]
[363736702,1748854242029,-811.73,0.00018094,2]
[363736704,1748854242039,-684.17,0.00018094,2]
[363736706,1748854242048,-782.37,0.00018094,2]
[363736708,1748854242057,-430.0,0.00018094,2]
[363736710,1748854242066,-430.0,0.00018094,2]
[363736712,1748854242078,-430.0,0.00018095,2]
[363736714,1748854242089,-809.7387544,0.00018107,2]
[363736716,1748854242098,-500.0,0.00018148,2]
[363736718,1748854242107,-502.26110878,0.00018264,2]
[363736720,1748854242116,-809.7387544,0.00018314,2]
[363736722,1748854242126,-264.83978785,0.00018317,2]
[363736724,1748854242135,-505.162816,0.00018317,2]
[363736726,1748854242144,-584.90847984,0.00018317,2]
[363736728,1748854242154,-500.0,0.00018332,2]
[363736730,1748854242164,-500.0,0.00018332,2]
[363736732,1748854242173,-821.06,0.00018366,2]
[363736734,1748854242182,-430.0,0.00018366,2]
[363736736,1748854242192,-1624.43,0.00018366,2]
[363736738,1748854242201,-2355.16,0.00018366,2]
[363736740,1748854242211,-430.0,0.00018366,2]
[363736742,1748854242220,-1479.82,0.00018366,2]
[363736744,1748854242229,-3124.55,0.00018366,2]
[363736747,1748854242239,-1994.6,0.00018366,2]
[363736749,1748854242249,-430.0,0.00018366,2]
[363736751,1748854242258,-885.46,0.00018366,2]
[363736753,1748854242268,-430.0,0.00018367,2]
[363736755,1748854242278,-585.51,0.00018367,2]
[363736757,1748854242287,-430.0,0.00018367,2]
[363736761,1748854242297,-430.0,0.00018367,2]
[363736763,1748854242307,-430.0,0.00018367,2]
[363736765,1748854242317,-430.0,0.00018367,2]
[363736767,1748854242329,-430.0,0.00018367,2]
[363736769,1748854242339,-430.0,0.00018367,2]
[363736771,1748854242348,-430.0,0.00018367,2]
[363736774,1748854242357,-430.0,0.00018367,2]
[363736777,1748854242366,-430.0,0.00018367,2]
[363736780,1748854242376,-430.0,0.00018367,2]
[363736783,1748854242386,-1835.62,0.00018367,2]
[363736786,1748854242395,-430.0,0.00018367,2]
[363736789,1748854242404,-657.02,0.00018367,2]
[363736793,1748854242414,-430.0,0.00018367,2]
[363736796,1748854242424,-635.13,0.00018368,2]
[363736800,1748854242433,-430.0,0.00018368,2]
[363736803,1748854242444,-430.0,0.00018368,2]
[363736805,1748854242453,-1016.76,0.00018368,2]
[363736807,1748854242463,-430.0,0.00018368,2]
[363736809,1748854242473,-430.0,0.00018368,2]
[363736811,1748854242482,-430.0,0.00018368,2]
[363736813,1748854242492,-524.21,0.00018368,2]
[363736815,1748854242501,-702.45,0.00018368,2]
[363736817,1748854242511,-430.0,0.00018368,2]
[363736818,1748854242521,-785.69,0.00018368,2]
[363736819,1748854242531,-430.0,0.00018368,2]
[363736820,1748854242540,-2725.24,0.00018368,2]
[363736821,1748854242550,-499.93,0.00018368,2]
[363736822,1748854242560,-430.0,0.00018368,2]
[363736823,1748854242569,-430.0,0.00018368,2]
[363736824,1748854242579,-877.42,0.00018368,2]
[363736825,1748854242589,-430.0,0.00018368,2]
[363736826,1748854242598,-9414.87,0.00018368,2]
[363736827,1748854242608,-430.0,0.00018368,2]
[363736828,1748854242617,-811.73,0.00018368,2]
[363736829,1748854242627,-684.17,0.00018368,2]
[363736830,1748854242636,-782.37,0.00018368,2]
[363736831,1748854242645,-478.96068556,0.00018368,2]
[363736832,1748854242654,-185.94776078,0.00018368,2]
[363736833,1748854242664,-501.28796705,0.00018463,2]
[363736834,1748854242674,-526.43913799,0.00018463,2]
[363736835,1748854242683,-809.7387544,0.00018521,2]
[363736837,1748854242693,-420.0,0.00018561,2]
[363736838,1748854242703,-420.0,0.00018562,2]
[363736840,1748854242713,-821.06,0.0001864,2]
[363736842,1748854242725,-430.0,0.0001864,2]
[363736844,1748854242734,-1624.43,0.0001864,2]
[363736846,1748854242744,-2355.16,0.0001864,2]
[363736848,1748854242753,-430.0,0.0001864,2]
[363736850,1748854242763,-1479.82,0.0001864,2]
[363736852,1748854242774,-3124.55,0.0001864,2]
[363736854,1748854242783,-1994.6,0.0001864,2]
[363736856,1748854242793,-241.23522986,0.0001864,2]
[363736858,1748854242803,-885.46,0.0001864,2]
[363736860,1748854242812,-430.0,0.00018641,2]
[363736862,1748854242823,-585.51,0.00018641,2]
[363736864,1748854242833,-430.0,0.00018641,2]
[363736866,1748854242842,-430.0,0.00018641,2]
[363736868,1748854242851,-430.0,0.00018641,2]
[363736870,1748854242861,-430.0,0.00018641,2]
[363736873,1748854242871,-430.0,0.00018641,2]
[363736875,1748854242880,-479.71330728,0.00018641,2]
[363736877,1748854242890,-430.0,0.00018641,2]
[363736879,1748854242899,-430.0,0.00018641,2]
[363736881,1748854242908,-430.0,0.00018641,2]
[363736884,1748854242918,-430.0,0.00018641,2]
[363736887,1748854242927,-1835.62,0.00018641,2]
[363736891,1748854242937,-459.4352748,0.00018641,2]
[363736894,1748854242947,-657.02,0.00018641,2]
[363736898,1748854242956,-430.0,0.00018641,2]
[363736902,1748854242965,-635.13,0.00018642,2]
[363736905,1748854242974,-430.0,0.00018642,2]
[363736908,1748854242983,-1016.76,0.00018642,2]
[363736911,1748854242992,-430.0,0.00018642,2]
[363736914,1748854243002,-430.0,0.00018642,2]
[363736918,1748854243012,-430.0,0.00018642,2]
[363736921,1748854243021,-524.21,0.00018642,2]
[363736923,1748854243029,-702.45,0.00018642,2]
[363736927,1748854243040,-162.97156676,0.00018642,2]
[363736930,1748854243049,-785.69,0.00018642,2]
[363736933,1748854243059,-430.0,0.00018642,2]
[363736935,1748854243068,-2725.24,0.00018642,2]
[363736938,1748854243079,-499.93,0.00018642,2]
[363736941,1748854243089,-430.0,0.00018642,2]
[363736942,1748854243098,-214.7,0.00018642,2]
[363736943,1748854243108,-877.42,0.00018642,2]
[363736944,1748854243118,-430.0,0.00018642,2]
[363736945,1748854243128,-9414.87,0.00018642,2]
[363736946,1748854243138,-811.73,0.00018642,2]
[363736947,1748854243148,-684.17,0.00018642,2]
[363736948,1748854243157,-782.37,0.00018642,2]
[363736949,1748854243166,-1000.0,0.00018696,2]
[363736951,1748854243176,-155.0,0.00018697,2]
[363736952,1748854243186,-809.7387544,0.00018728,2]
[363736953,1748854243196,-1101.78979147,0.00018748,2]
[363736954,1748854243206,-500.0,0.0001888,2]
[363736955,1748854243216,-452.25893078,0.0001888,2]
[363736956,1748854243225,-151.66285173,0.00018894,2]
[363736957,1748854243235,-821.06,0.00018914,2]
[363736958,1748854243245,-430.0,0.00018914,2]
[363736959,1748854243254,-1624.43,0.00018914,2]
[363736960,1748854243265,-2355.16,0.00018914,2]
[363736961,1748854243275,-430.0,0.00018914,2]
[363736962,1748854243285,-1479.82,0.00018914,2]
[363736963,1748854243295,-3124.55,0.00018914,2]
[363736964,1748854243303,-1994.6,0.00018914,2]
[363736965,1748854243312,-885.46,0.00018914,2]
[363736966,1748854243323,-430.0,0.00018915,2]
[363736967,1748854243333,-585.51,0.00018915,2]
[363736968,1748854243342,-430.0,0.00018915,2]
[363736969,1748854243351,-430.0,0.00018915,2]
[363736970,1748854243360,-430.0,0.00018915,2]
[363736971,1748854243370,-430.0,0.00018915,2]
[363736972,1748854243380,-430.0,0.00018915,2]
[363736973,1748854243389,-430.0,0.00018915,2]
[363736974,1748854243398,-430.0,0.00018915,2]
[363736975,1748854243407,-439.41643294,0.00018915,2]
[363736976,1748854243417,-430.0,0.00018915,2]
[363736977,1748854243427,-1835.62,0.00018915,2]
[363736978,1748854243437,-657.02,0.00018915,2]
[363736979,1748854243447,-635.13,0.00018916,2]
[363736980,1748854243457,-337.11120446,0.00018916,2]
[363736981,1748854243466,-1016.76,0.00018916,2]
[363736982,1748854243475,-430.0,0.00018916,2]
[363736983,1748854243485,-430.0,0.00018916,2]
[363736984,1748854243495,-489.34539332,0.00018916,2]
[363736985,1748854243505,-524.21,0.00018916,2]
[363736986,1748854243514,-702.45,0.00018916,2]
[363736987,1748854243524,-785.69,0.00018916,2]
[363736988,1748854243533,-430.0,0.00018916,2]
[363736989,1748854243543,-2725.24,0.00018916,2]
[363736990,1748854243553,-499.93,0.00018916,2]
[363736991,1748854243563,-430.0,0.00018916,2]
[363736992,1748854243573,-877.42,0.00018916,2]
[363736993,1748854243583,-430.0,0.00018916,2]
[363736994,1748854243594,-9414.87,0.00018916,2]
[363736995,1748854243604,-811.73,0.00018916,2]
[363736996,1748854243614,-684.17,0.00018916,2]
[363736997,1748854243624,-782.37,0.00018916,2]
[363736998,1748854243633,-809.7387544,0.00018934,2]
[363736999,1748854243643,-1000.0,0.00019033,2]
[363737000,1748854243653,-809.7387544,0.00019141,2]
[363737001,1748854243664,-500.0,0.00019178,2]
[363737002,1748854243674,-500.0,0.00019178,2]
[363737003,1748854243685,-500.0,0.00019178,2]
[363737004,1748854243695,-500.0,0.00019178,2]
[363737005,1748854243705,-500.0,0.00019178,2]
[363737006,1748854243715,-500.0,0.00019178,2]
[363737007,1748854243729,-500.0,0.00019178,2]
[363737008,1748854243738,-500.0,0.00019178,2]
[363737009,1748854243748,-500.0,0.00019178,2]
[363737010,1748854243757,-500.0,0.00019178,2]
[363737011,1748854243767,-566.87529286,0.00019178,2]
[363737012,1748854243777,-500.0,0.00019178,2]
[363737013,1748854243786,-500.0,0.00019178,2]
[363737014,1748854243798,-500.0,0.00019178,2]
[363737015,1748854243807,-500.0,0.00019178,2]
[363737016,1748854243816,-195.517644,0.00019178,2]
[363737017,1748854243826,-821.06,0.00019188,2]
[363737018,1748854243835,-430.0,0.00019188,2]
[363737019,1748854243845,-1624.43,0.00019188,2]
[363737020,1748854243854,-2355.16,0.00019188,2]
[363737021,1748854243864,-430.0,0.00019188,2]
[363737022,1748854243874,-1479.82,0.00019188,2]
[363737023,1748854243883,-3124.55,0.00019188,2]
[363737024,1748854243893,-1994.6,0.00019188,2]
[363737025,1748854243902,-885.46,0.00019188,2]
[363737026,1748854243911,-430.0,0.00019189,2]
[363737027,1748854243921,-585.51,0.00019189,2]
[363737028,1748854243930,-430.0,0.00019189,2]
[363737029,1748854243939,-430.0,0.00019189,2]
[363737030,1748854243948,-430.0,0.00019189,2]
[363737031,1748854243957,-430.0,0.00019189,2]
[363737032,1748854243966,-430.0,0.00019189,2]
[363737033,1748854243975,-430.0,0.00019189,2]
[363737034,1748854243984,-430.0,0.00019189,2]
[363737035,1748854243993,-1835.62,0.00019189,2]
[363737036,1748854244002,-657.02,0.00019189,2]
[363737037,1748854244011,-635.13,0.0001919,2]
[363737038,1748854244020,-1016.76,0.0001919,2]
[363737039,1748854244029,-430.0,0.0001919,2]
[363737040,1748854244038,-430.0,0.0001919,2]
[363737041,1748854244048,-524.21,0.0001919,2]
[363737042,1748854244058,-702.45,0.0001919,2]
[363737043,1748854244067,-785.69,0.0001919,2]
[363737044,1748854244080,-430.0,0.0001919,2]
[363737045,1748854244089,-2725.24,0.0001919,2]
[363737046,1748854244099,-499.93,0.0001919,2]
[363737047,1748854244109,-430.0,0.0001919,2]
[363737048,1748854244118,-877.42,0.0001919,2]
[363737049,1748854244128,-430.0,0.0001919,2]
[363737050,1748854244138,-9414.87,0.0001919,2]
[363737051,1748854244147,-811.73,0.0001919,2]
[363737052,1748854244157,-684.17,0.0001919,2]
[363737053,1748854244166,-782.37,0.0001919,2]
[363737054,1748854244175,-1500.0,0.00019244,2]
[363737055,1748854244184,-978.98,0.00019279,2]
[363737056,1748854244194,-809.7387544,0.00019348,2]
[363737057,1748854244203,-821.06,0.00019462,2]
[363737058,1748854244212,-430.0,0.00019462,2]
[363737059,1748854244222,-1624.43,0.00019462,2]
[363737060,1748854244232,-2355.16,0.00019462,2]
[363737061,1748854244241,-430.0,0.00019462,2]
[363737062,1748854244252,-1479.82,0.00019462,2]
[363737063,1748854244261,-3124.55,0.00019462,2]
[363737064,1748854244271,-1994.6,0.00019462,2]
[363737065,1748854244281,-885.46,0.00019462,2]
[363737066,1748854244385,-430.0,0.00019463,2]
[363737067,1748854244396,-585.51,0.00019463,2]
[363737068,1748854244406,-430.0,0.00019463,2]
[363737069,1748854244415,-430.0,0.00019463,2]
[363737070,1748854244425,-430.0,0.00019463,2]
[363737071,1748854244435,-430.0,0.00019463,2]
[363737072,1748854244444,-430.0,0.00019463,2]
[363737073,1748854244454,-430.0,0.00019463,2]
[363737074,1748854244464,-430.0,0.00019463,2]
[363737075,1748854244474,-1835.62,0.00019463,2]
[363737076,1748854244483,-657.02,0.00019463,2]
[363737077,1748854244493,-635.13,0.00019464,2]
[363737078,1748854244503,-1016.76,0.00019464,2]
[363737079,1748854244512,-430.0,0.00019464,2]
[363737080,1748854244522,-430.0,0.00019464,2]
[363737081,1748854244532,-524.21,0.00019464,2]
[363737082,1748854244541,-702.45,0.00019464,2]
[363737083,1748854244551,-785.69,0.00019464,2]
[363737084,1748854244561,-430.0,0.00019464,2]
[363737085,1748854244570,-2725.24,0.00019464,2]
[363737086,1748854244580,-499.93,0.00019464,2]
[363737087,1748854244590,-430.0,0.00019464,2]
[363737088,1748854244600,-877.42,0.00019464,2]
[363737089,1748854244610,-430.0,0.00019464,2]
[363737090,1748854244620,-9414.87,0.00019464,2]
[363737091,1748854244631,-811.73,0.00019464,2]
[363737092,1748854244641,-684.17,0.00019464,2]
[363737093,1748854244651,-782.37,0.00019464,2]
[363737094,1748854244662,-809.7387544,0.00019555,2]
[363737095,1748854244672,-162.008,0.00019665,2]
[363737096,1748854244682,-821.06,0.00019736,2]
[363737097,1748854244692,-430.0,0.00019736,2]
[363737098,1748854244702,-1624.43,0.00019736,2]
[363737099,1748854244713,-2355.16,0.00019736,2]
[363737100,1748854244726,-430.0,0.00019736,2]
[363737101,1748854244736,-1479.82,0.00019736,2]
[363737102,1748854244745,-3124.55,0.00019736,2]
[363737103,1748854244756,-1994.6,0.00019736,2]
[363737104,1748854244766,-885.46,0.00019736,2]
[363737105,1748854244776,-430.0,0.00019737,2]
[363737106,1748854244786,-585.51,0.00019737,2]
[363737107,1748854244797,-430.0,0.00019737,2]
[363737108,1748854244807,-430.0,0.00019737,2]
[363737109,1748854244818,-430.0,0.00019737,2]
[363737110,1748854244828,-430.0,0.00019737,2]
[363737111,1748854244838,-430.0,0.00019737,2]
[363737112,1748854244848,-430.0,0.00019737,2]
[363737113,1748854244858,-429.71539997,0.00019737,2]
[363737114,1748854244868,-1835.62,0.00019737,2]
[363737115,1748854244878,-657.02,0.00019737,2]
[363737116,1748854244888,-635.13,0.00019738,2]
[363737117,1748854244899,-1016.76,0.00019738,2]
[363737118,1748854244909,-430.0,0.00019738,2]
[363737119,1748854244919,-430.0,0.00019738,2]
[363737120,1748854244930,-524.21,0.00019738,2]
[363737121,1748854244939,-702.45,0.00019738,2]
[363737122,1748854244950,-785.69,0.00019738,2]
[363737123,1748854244960,-430.0,0.00019738,2]
[363737124,1748854244970,-2725.24,0.00019738,2]
[363737125,1748854244981,-499.93,0.00019738,2]
[363737126,1748854244990,-430.0,0.00019738,2]
[363737127,1748854245000,-877.42,0.00019738,2]
[363737128,1748854245010,-430.0,0.00019738,2]
[363737129,1748854245019,-9414.87,0.00019738,2]
[363737130,1748854245030,-811.73,0.00019738,2]
[363737131,1748854245040,-684.17,0.00019738,2]
[363737132,1748854245049,-782.37,0.00019738,2]
[363737133,1748854245059,-809.7387544,0.00019762,2]
[363737134,1748854245069,-1101.78979147,0.00019776,2]
[363737135,1748854245080,-2000.0,0.00019792,2]
[363737136,1748854245090,-151.66285173,0.00019892,2]
[363737137,1748854245099,-430.0,0.00019899,2]
[363737138,1748854245109,-430.0,0.00019899,2]
[363737139,1748854245119,-155.46,0.00019899,2]
[363737140,1748854245129,-430.0,0.00019899,2]
[363737141,1748854245139,-170.70859069,0.00019899,2]
[363737142,1748854245149,-430.0,0.00019899,2]
[363737143,1748854245159,-430.0,0.00019899,2]
[363737144,1748854245169,-500.0,0.00019899,2]
[363737145,1748854245179,-434.09679413,0.00019899,2]
[363737146,1748854245189,-430.0,0.00019899,2]
[363737147,1748854245199,-430.0,0.00019899,2]
[363737148,1748854245209,-430.0,0.00019899,2]
[363737149,1748854245220,-431.48465819,0.00019899,2]
[363737150,1748854245230,-430.0,0.00019899,2]
[363737151,1748854245240,-430.0,0.00019899,2]
[363737152,1748854245250,-430.0,0.00019899,2]
[363737153,1748854245259,-430.0,0.00019899,2]
[363737154,1748854245270,-809.7387544,0.00019969,2]
[363737155,1748854245279,-160.0,0.00019989,2]
[363737156,1748854245289,-821.06,0.0002001,2]
[363737157,1748854245299,-430.0,0.0002001,2]
[363737158,1748854245309,-1624.43,0.0002001,2]
[363737160,1748854245319,-2355.16,0.0002001,2]
[363737161,1748854245330,-430.0,0.0002001,2]
[363737162,1748854245339,-1479.82,0.0002001,2]
[363737163,1748854245348,-3124.55,0.0002001,2]
[363737164,1748854245358,-1994.6,0.0002001,2]
[363737165,1748854245367,-885.46,0.0002001,2]
[363737166,1748854245377,-430.0,0.00020011,2]
[363737167,1748854245386,-585.51,0.00020011,2]
[363737168,1748854245396,-476.57376914,0.00020011,2]
[363737169,1748854245406,-525.06375496,0.00020011,2]
[363737170,1748854245416,-430.0,0.00020011,2]
[363737171,1748854245426,-430.0,0.00020011,2]
[363737172,1748854245436,-430.0,0.00020011,2]
[363737173,1748854245445,-1835.62,0.00020011,2]
[363737174,1748854245455,-657.02,0.00020011,2]
[363737175,1748854245465,-635.13,0.00020012,2]
[363737176,1748854245475,-1016.76,0.00020012,2]
[363737177,1748854245485,-430.0,0.00020012,2]
[363737178,1748854245495,-430.0,0.00020012,2]
[363737179,1748854245506,-524.21,0.00020012,2]
[363737180,1748854245515,-702.45,0.00020012,2]
[363737181,1748854245525,-785.69,0.00020012,2]
[363737182,1748854245535,-430.0,0.00020012,2]
[363737183,1748854245544,-2725.24,0.00020012,2]
[363737184,1748854245553,-499.93,0.00020012,2]
[363737185,1748854245562,-430.0,0.00020012,2]
[363737186,1748854245573,-306.52276743,0.00020012,2]
[363737196,1748854245943,-430.0,0.00016996,2]
[363737198,1748854245953,-430.0,0.00016997,2]
[363737200,1748854245963,-430.0,0.00016997,2]
[363737201,1748854245972,-430.0,0.00017271,2]
[363737202,1748854245982,-353.85980114,0.00017271,2]
[363737204,1748854246379,-538.15264217,0.00016996,2]
[363737205,1748854246389,-430.0,0.00016997,2]
[363737206,1748854246398,-430.0,0.00016998,2]
[363737207,1748854246407,-76.14019886,0.00017271,2]
[363737208,1748854246417,-430.0,0.00017272,2]
[363737209,1748854246426,-430.0,0.00017545,2]
[363737210,1748854246435,-430.0,0.00017819,2]
[363737211,1748854246444,-430.0,0.00018093,2]
[363737212,1748854246453,-430.0,0.00018367,2]
[363737213,1748854246462,-171.22,0.00018641,2]
[363737214,1748854246471,-570.89723257,0.00020012,2]
[363737215,1748854246480,-430.0,0.00020012,2]
[363737216,1748854246490,-6268.47539709,0.00020012,2]
[363737217,1748854253134,500.0,0.00024658,120]
[363737218,1748854261274,500.0,0.00024658,120]
[363737219,1748854275693,500.0,0.00024658,120]
[363737220,1748854284010,500.0,0.00024658,120]
[363737221,1748854292414,500.0,0.00024658,120]
[363737222,1748854310177,500.0,0.00024658,120]
[363737223,1748854319517,500.0,0.00024658,120]
[363737224,1748854327937,500.0,0.00024658,120]
[363737225,1748854329914,2000.0,0.00016947,120]
[363737226,1748854335918,500.0,0.00024658,120]
[363737227,1748854342320,500.0,0.00024658,120]
[363737228,1748854348684,500.0,0.00024658,120]
[363737229,1748854357066,500.0,0.00024658,120]
[363737230,1748854365801,500.0,0.00024658,120]
[363737231,1748854373433,500.0,0.00024658,120]
[363737232,1748854374939,-290.73,0.00016315,2]
[363737233,1748854374964,-2601.27,0.00016826,2]
[363737234,1748854394581,250.00025,0.00024658,120]
[363737236,1748854441433,-2370.73,0.00016134,2]
[363737237,1748854441454,-285.44,0.00016297,2]
[363737238,1748854441478,-300.0,0.00016994,2]
[363737239,1748854441501,-430.0,0.00016995,2]
[363737240,1748854441529,-430.0,0.00016995,2]
[363737241,1748854441553,-430.0,0.00016995,2]
[363737242,1748854441579,-454.11,0.00016995,2]
[363737243,1748854441603,-430.0,0.00016995,2]
[363737244,1748854441628,-990.64,0.00016995,2]
[363737245,1748854441652,-147.08,0.00016995,2]
[363737246,1748854448361,163.5206,0.00013699,2]
[363737248,1748854507603,-185.4414539,0.00016124,2]
[363737249,1748854507654,-280.25,0.00016335,2]
[363737250,1748854507702,-151.66285173,0.00016896,2]
[363737251,1748854507749,-300.0,0.00016994,2]
[363737252,1748854507792,-300.0,0.00016994,2]
[363737253,1748854507820,-213.0,0.00016994,2]
[363737254,1748854507843,-282.92,0.00016995,2]
[363737255,1748854507881,-430.0,0.00016995,2]
[363737256,1748854507907,-510.0,0.00016995,2]
[363737257,1748854507944,-57.72569437,0.00016995,2]
[363737267,1748854825852,175045.19583192,0.000155,2]
[363737271,1748855095661,-304.58858504,0.00015681,2]
[363737272,1748855110456,-239.91861245,0.00015681,2]
[363737273,1748855112173,-274.17565489,0.00015681,2]
[363737274,1748855116282,-181.86573826,0.00015681,2]
[363737275,1748855118463,-312.21939087,0.00015681,2]
[363737276,1748855121270,-172.89261289,0.00015681,2]
[363737277,1748855127251,-161.78481334,0.00015681,2]
[363737278,1748855129360,-212.0045471,0.00015681,2]
[363737279,1748855135015,-154.39425402,0.00015681,2]
[363737280,1748855137035,-192.74847749,0.00015681,2]
[363737281,1748855139276,-306.82480709,0.00015681,2]
[363737282,1748855142414,-195.85382659,0.00015681,2]
[363737283,1748855143959,-152.0,0.00015681,2]
[363737284,1748855146089,-224.536575,0.00015681,2]
[363737285,1748855153434,-233.52,0.00015681,2]
[363737286,1748855159415,-157.41593566,0.00015681,2]
[363737287,1748855162306,-205.25416355,0.00015681,2]
[363737288,1748855166937,-193.5442518,0.00015681,2]
[363737289,1748855169264,-211.22775025,0.00015681,2]
[363737290,1748855171458,-151.98457739,0.00015681,2]
[363737292,1748855173131,-261.82249906,0.00015681,2]
[363737293,1748855175781,-273.52668646,0.00015681,2]
[363737294,1748855177834,-225.8962408,0.00015681,2]
[363737295,1748855181051,4976.39615965,0.0001552,2]
[363737304,1748855275779,-154.60661659,0.00015681,2]
[363737305,1748855277768,-11.52509692,0.00015681,2]
[363737348,1748855438247,-154.60661659,0.00015838,2]
[363737349,1748855438258,-385.14,0.0001599,3]
[363737350,1748855438267,-300.0,0.00015998,2]
[363737351,1748855438277,-1200.0,0.00015998,2]
[363737352,1748855438287,-500.0,0.00015999,2]
[363737353,1748855438297,-500.0,0.00015999,2]
[363737354,1748855438307,-500.0,0.00015999,2]
[363737356,1748855438316,-597.85320696,0.00015999,2]
[363737358,1748855438325,-500.0,0.00015999,2]
[363737360,1748855438335,-500.0,0.00015999,2]
[363737362,1748855438351,-500.0,0.00015999,2]
[363737364,1748855438361,-394.98746746,0.00015999,2]
[363737366,1748855438372,-500.0,0.00015999,2]
[363737368,1748855438382,-500.0,0.00015999,2]
[363737370,1748855438392,-500.0,0.00015999,2]
[363737372,1748855438402,-236.06340906,0.00015999,2]
[363737374,1748855438412,-500.0,0.00015999,2]
[363737376,1748855438424,-500.0,0.00015999,2]
[363737378,1748855438434,-608.95393664,0.00015999,2]
[363737380,1748855438444,-203.95061286,0.00015999,2]
[363737382,1748855438454,-163079.88428747,0.00016,3]
[363737384,1748855438463,-12668.79298183,0.00016,3]
[363737386,1748855438473,-314.91466509,0.00016,3]
[363737388,1748855438482,-842.5625,0.00016,3]
[363737390,1748855438492,-430.0,0.00016438,2]
[363737392,1748855438501,-430.0,0.00016438,2]
[363737394,1748855438510,-430.0,0.00016438,2]
[363737396,1748855438519,-430.0,0.00016438,2]
[363737398,1748855438529,-948.58,0.00016438,2]
[363737400,1748855438538,-430.0,0.00016438,2]
[363737402,1748855438548,-430.0,0.00016438,2]
[363737404,1748855438557,-324.20011254,0.00016438,2]
[363737406,1748855438566,-430.0,0.00016438,2]
[363737408,1748855438576,-251.62774334,0.00016438,2]
[363737410,1748855438586,-466.91,0.00016438,2]
[363737412,1748855438597,-430.0,0.00016438,2]
[363737414,1748855438607,-431.43157157,0.00016438,2]
[363737416,1748855438616,-276.28871516,0.00016438,2]
[363737418,1748855438626,-2119.88,0.00016438,2]
[363737421,1748855438636,-2637.84,0.00016438,2]
[363737423,1748855438646,-183.14622855,0.00016438,2]
[363737425,1748855438656,-430.0,0.00016438,2]
[363737427,1748855438665,-430.0,0.00016438,2]
[363737429,1748855438675,-420.0,0.00016438,2]
[363737432,1748855438685,-549.39,0.00016438,2]
[363737434,1748855438695,-430.0,0.00016438,2]
[363737436,1748855438704,-430.0,0.00016438,2]